fUST/lending_fUST_20250827
["ID","MTS","AMOUNT","RATE_DAILY","PERIOD"]
[381560232,1756284328350,5000.0,0.00023,2]
[381560233,1756284343866,5000.0,0.00023,2]
[381560234,1756284357070,3022.83688397,0.000199,2]
[381560235,1756284357231,3022.83688386,0.00021627,2]
[381560236,1756284359260,397.4250688,0.00022154,2]
[381560237,1756284361002,3556.91116337,0.00023,2]
[381560238,1756284361025,1443.08883663,0.00023,2]
[381560239,1756284362216,156.06169757,0.00022995,2]
[381560240,1756284376972,5000.0,0.00023,2]
[381560241,1756284392516,5000.0,0.00023,2]
[381560249,1756284408048,5000.0,0.00023,2]
[381560250,1756284410067,-373.97820586,0.00023059,2]
[381560251,1756284410095,-153.70785489,0.00023062,2]
[381560252,1756284410123,-2257.15270403,0.00023066,2]
[381560253,1756284410151,-2107.6799742,0.00023159,2]
[381560254,1756284410177,-58.91082448,0.00023162,2]
[381560255,1756284410620,-97.15087308,0.00023162,2]
[381560256,1756284410648,-300.0,0.00023165,2]
[381560257,1756284410677,-500.0,0.00023165,2]
[381560258,1756284410705,-183.25729517,0.00023165,2]
[381560259,1756284410736,-500.0,0.00023165,2]
[381560260,1756284410765,-500.0,0.00023165,2]
[381560261,1756284410798,-500.0,0.00023165,2]
[381560262,1756284410834,-500.0,0.00023165,2]
[381560263,1756284410868,-500.0,0.00023165,2]
[381560264,1756284410898,-500.0,0.00023165,2]
[381560265,1756284410931,-500.0,0.00023165,2]
[381560266,1756284410964,-239.56969118,0.00023165,2]
[381560267,1756284411074,-500.0,0.00023165,2]
[381560268,1756284411105,-500.0,0.00023165,2]
[381560269,1756284411134,-500.0,0.00023165,2]
[381560270,1756284411161,-500.0,0.00023165,2]
[381560271,1756284411189,-500.0,0.00023165,2]
[381560272,1756284411218,-500.0,0.00023165,2]
[381560273,1756284411247,-500.0,0.00023165,2]
[381560274,1756284411276,-500.0,0.00023165,2]
[381560275,1756284411304,-500.0,0.00023165,2]
[381560276,1756284411333,-457.58575165,0.00023165,2]
[381560277,1756284411551,-84.8384967,0.00023165,2]
[381560278,1756284411579,-500.0,0.00023165,2]
[381560279,1756284411612,-480.0,0.00023166,2]
[381560280,1756284411639,-480.0,0.00023166,2]
[381560281,1756284411667,-480.0,0.00023166,2]
[381560282,1756284411694,-480.0,0.00023166,2]
[381560283,1756284411728,-1460.05,0.00023166,2]
[381560284,1756284411926,-2220.12,0.00023166,2]
[381560285,1756284411955,-483.08609298,0.00023166,2]
[381560286,1756284411983,-831.06,0.00023166,2]
[381560287,1756284412330,-1517.03,0.00023166,2]
[381560288,1756284412438,-3034.06,0.00023166,2]
[381560289,1756284412781,-3931.89,0.00023166,2]
[381560290,1756284412816,-480.0,0.00023166,2]
[381560291,1756284412843,-480.0,0.00023166,2]
[381560292,1756284413071,-480.0,0.00023166,2]
[381560293,1756284413099,-3244.9,0.00023166,2]
[381560294,1756284413128,-480.0,0.00023166,2]
[381560295,1756284413160,-480.0,0.00023166,2]
[381560296,1756284413308,-900.75,0.00023166,2]
[381560297,1756284413336,-480.0,0.00023166,2]
[381560298,1756284413367,-480.0,0.00023166,2]
[381560299,1756284413401,-1881.26,0.00023166,2]
[381560300,1756284413431,-480.0,0.00023166,2]
[381560301,1756284413465,-480.0,0.00023166,2]
[381560302,1756284423537,5000.0,0.00023,2]
[381560303,1756284428193,501.433168,0.0002215,2]
[381560308,1756284439362,5000.0,0.00023,2]
[381560309,1756284459678,5000.0,0.00023,2]
[381560310,1756284460147,-193.65554775,0.00023065,2]
[381560311,1756284460174,-193.65554774,0.00023065,2]
[381560312,1756284460201,-193.65554774,0.00023066,2]
[381560313,1756284460227,-193.65554774,0.00023066,2]
[381560314,1756284460253,-193.65554774,0.00023066,2]
[381560315,1756284461908,-7824.03692375,0.00023165,2]
[381560316,1756284462138,-10000.01,0.00023165,2]
[381560317,1756284470320,-203.6903084,0.00023065,2]
[381560318,1756284470347,-2957.50147844,0.00023165,2]
[381560319,1756284470375,-300.0,0.00023165,2]
[381560320,1756284470401,-1200.0,0.00023165,2]
[381560321,1756284470431,-197.62642632,0.00023165,2]
[381560322,1756284470732,-282.37357368,0.00023165,2]
[381560323,1756284470850,-500.0,0.00023165,2]
[381560324,1756284470880,-500.0,0.00023165,2]
[381560325,1756284470908,-500.0,0.00023165,2]
[381560326,1756284470936,-500.0,0.00023165,2]
[381560327,1756284470964,-500.0,0.00023165,2]
[381560328,1756284470993,-500.0,0.00023165,2]
[381560329,1756284471021,-175.1496489,0.00023165,2]
[381560330,1756284471052,-500.0,0.00023165,2]
[381560331,1756284471080,-190.56744734,0.00023165,2]
[381560332,1756284471108,-500.0,0.00023165,2]
[381560333,1756284471137,-500.0,0.00023165,2]
[381560334,1756284471221,-500.0,0.00023165,2]
[381560335,1756284471249,-448.33297923,0.00023165,2]
[381560336,1756284471280,-500.0,0.00023165,2]
[381560337,1756284471308,-500.0,0.00023165,2]
[381560338,1756284471337,-636.65888191,0.00023165,2]
[381560339,1756284471366,-459.48904912,0.00023165,2]
[381560340,1756284471393,-500.0,0.00023165,2]
[381560341,1756284471422,-500.0,0.00023165,2]
[381560342,1756284471452,-565.78771939,0.00023165,2]
[381560343,1756284471480,-279.4727407,0.00023165,2]
[381560344,1756284471621,-220.5272593,0.00023165,2]
[381560345,1756284471654,-500.0,0.00023165,2]
[381560346,1756284471682,-500.0,0.00023165,2]
[381560347,1756284471709,-500.0,0.00023165,2]
[381560348,1756284471736,-500.00000001,0.00023165,2]
[381560349,1756284471765,-167.95995062,0.00023165,2]
[381560350,1756284471793,-500.0,0.00023165,2]
[381560351,1756284471821,-613.92061476,0.00023165,2]
[381560352,1756284471851,-500.0,0.00023165,2]
[381560353,1756284471880,-436.24886922,0.00023165,2]
[381560354,1756284471907,-272.16877048,0.00023165,2]
[381560355,1756284471934,-78.35907122,0.00023165,2]
[381560356,1756284472090,-421.64092878,0.00023165,2]
[381560357,1756284472120,-4161.46814244,0.00023166,2]
[381560358,1756284472312,-833.79185756,0.00023166,2]
[381560359,1756284472339,-480.0,0.00023166,2]
[381560360,1756284472368,-797.64,0.00023166,2]
[381560361,1756284472395,-480.0,0.00023166,2]
[381560362,1756284472422,-480.0,0.00023166,2]
[381560363,1756284472448,-682.46,0.00023166,2]
[381560364,1756284472478,-480.0,0.00023166,2]
[381560365,1756284472510,-679.94628488,0.00023166,2]
[381560366,1756284472642,-172.33371512,0.00023166,2]
[381560367,1756284472669,-480.0,0.00023166,2]
[381560368,1756284472696,-480.0,0.00023166,2]
[381560369,1756284472723,-1837.2,0.00023166,2]
[381560370,1756284472751,-390.67044967,0.00023166,2]
[381560371,1756284472778,-605.14,0.00023166,2]
[381560372,1756284472806,-764.44,0.00023166,2]
[381560373,1756284472834,-60.44167042,0.00023166,2]
[381560374,1756284473058,-419.55832958,0.00023166,2]
[381560375,1756284473085,-500.0,0.00023166,2]
[381560376,1756284473112,-480.0,0.00023166,2]
[381560377,1756284473306,-593.69,0.00023166,2]
[381560378,1756284473334,-493.22,0.00023166,2]
[381560379,1756284473360,-1737.58334084,0.00023166,2]
[381560380,1756284473487,-1551.90665916,0.00023166,2]
[381560381,1756284473514,-1025.99,0.00023166,2]
[381560382,1756284473540,-1041.55,0.00023166,2]
[381560383,1756284473568,-480.0,0.00023166,2]
[381560384,1756284473597,-480.0,0.00023166,2]
[381560385,1756284473624,-84.44668168,0.00023166,2]
[381560386,1756284473822,-672.22331832,0.00023166,2]
[381560387,1756284473850,-480.0,0.00023166,2]
[381560388,1756284473877,-704.33,0.00023166,2]
[381560389,1756284473905,-480.0,0.00023166,2]
[381560390,1756284473931,-480.0,0.00023166,2]
[381560391,1756284473958,-484.48,0.00023166,2]
[381560392,1756284473986,-1221.01,0.00023166,2]
[381560393,1756284474014,-160.67336336,0.00023166,2]
[381560394,1756284474814,-7.52046555,0.00023166,2]
[381560395,1756284474838,-627.05617109,0.00023166,2]
[381560396,1756284474847,-45.16714723,0.00023166,2]
[381560397,1756284474860,-434.83285277,0.00023166,2]
[381560398,1756284474869,-45.16714723,0.00023166,2]
[381560399,1756284474959,-434.83285277,0.00023166,2]
[381560400,1756284474970,-269.49714723,0.00023166,2]
[381560401,1756284475007,-210.50285277,0.00023166,2]
[381560402,1756284475016,-269.49714723,0.00023166,2]
[381560403,1756284475038,-210.50285277,0.00023166,2]
[381560404,1756284475047,-269.49714723,0.00023166,2]
[381560405,1756284475065,-299.05285277,0.00023166,2]
[381560406,1756284475075,-185.42714723,0.00023166,2]
[381560407,1756284475088,-294.57285277,0.00023166,2]
[381560408,1756284475098,-772.12,0.00023166,2]
[381560409,1756284475107,-154.31714723,0.00023166,2]
[381560410,1756284475124,-325.68285277,0.00023166,2]
[381560411,1756284475133,-469.56714723,0.00023166,2]
[381560412,1756284475435,649.915426,0.0002247,2]
[381560413,1756284475899,1420.39356238,0.00022471,2]
[381560414,1756284476256,710.19678119,0.00022472,2]
[381560415,1756284490741,788.812052,0.00013699,2]
[381560416,1756284490956,788.812052,0.00020187,2]
[381560417,1756284491572,5916.6630115,0.00022368,2]
[381560419,1756284509254,1626.0,0.00023,2]
[381560420,1756284530261,-4492.5278859,0.0002316,2]
[381560421,1756284530418,-1056.75357611,0.0002316,2]
[381560422,1756284531417,-2113.50715222,0.0002316,2]
[381560423,1756284531470,-4227.01430444,0.0002316,2]
[381560424,1756284531548,-1545.98139112,0.0002316,2]
[381560425,1756284531575,-300.0,0.00023165,2]
[381560426,1756284531602,-480.0,0.00023165,2]
[381560427,1756284531630,-611.26,0.00023165,2]
[381560428,1756284531656,-183.16591915,0.00023165,2]
[381560429,1756284531685,-500.0,0.00023165,2]
[381560430,1756284531713,-183.16591915,0.00023165,2]
[381560431,1756284531741,-525.0,0.00023165,2]
[381560432,1756284531769,-476.41712078,0.00023165,2]
[381560433,1756284531824,-644.37908702,0.00023165,2]
[381560434,1756284531852,-500.0,0.00023165,2]
[381560435,1756284531881,-500.0,0.00023165,2]
[381560436,1756284531911,-500.0,0.00023165,2]
[381560437,1756284531940,-500.0,0.00023165,2]
[381560438,1756284531971,-500.0,0.00023165,2]
[381560439,1756284531998,-480.0,0.00023165,2]
[381560440,1756284532026,-1367.00182596,0.00023165,2]
[381560441,1756284532296,-17.24817404,0.00023165,2]
[381560442,1756284532323,-476.41712078,0.00023165,2]
[381560443,1756284532349,-500.0,0.00023165,2]
[381560444,1756284532376,-183.16591915,0.00023165,2]
[381560445,1756284532404,-500.0,0.00023165,2]
[381560446,1756284532432,-536.15606989,0.00023165,2]
[381560447,1756284532459,-178.31216846,0.00023165,2]
[381560448,1756284532486,-500.0,0.00023165,2]
[381560449,1756284532513,-183.16591915,0.00023165,2]
[381560450,1756284532540,-500.0,0.00023165,2]
[381560451,1756284532567,-500.0,0.00023165,2]
[381560452,1756284532594,-500.0,0.00023165,2]
[381560453,1756284532621,-369.59054736,0.00023165,2]
[381560454,1756284532819,-111.89816234,0.00023165,2]
[381560455,1756284532846,-500.0,0.00023165,2]
[381560456,1756284532875,-1349.51285277,0.00023166,2]
[381560457,1756284532901,-815.31,0.00023166,2]
[381560458,1756284532929,-809.93,0.00023166,2]
[381560459,1756284532956,-647.0,0.00023166,2]
[381560460,1756284532984,-164.20752837,0.00023166,2]
[381560461,1756284533338,-500.0,0.00023165,2]
[381560462,1756284533366,-489.40529147,0.00023165,2]
[381560463,1756284533394,-1723.3,0.00023166,2]
[381560464,1756284533612,-480.0,0.00023166,2]
[381560465,1756284533641,-1539.79941706,0.00023166,2]
[381560466,1756284533729,-535.00058294,0.00023166,2]
[381560467,1756284533756,-621.67,0.00023166,2]
[381560468,1756284533783,-507.35,0.00023166,2]
[381560469,1756284533809,-480.0,0.00023166,2]
[381560470,1756284533837,-2767.19,0.00023166,2]
[381560471,1756284534510,-270.78819584,0.00023165,2]
[381560473,1756284534524,-201.4334023,0.00023165,2]
[381560474,1756284534534,-480.0,0.00023166,2]
[381560475,1756284534543,-902.12,0.00023166,2]
[381560476,1756284534552,-139.7465977,0.00023166,2]
[381560477,1756284534567,-480.0,0.00023166,2]
[381560478,1756284534675,-397.8334023,0.00023166,2]
[381560479,1756284534685,-1042.63,0.00023166,2]
[381560480,1756284534694,-480.0,0.00023166,2]
[381560481,1756284534703,-154.3365977,0.00023166,2]
[381560482,1756284534716,-535.00058294,0.00023166,2]
[381560483,1756284534729,-362.83281936,0.00023166,2]
[381560484,1756284534738,-258.83718064,0.00023166,2]
[381560485,1756284534757,-386.67281936,0.00023166,2]
[381560486,1756284534766,-120.67718064,0.00023166,2]
[381560487,1756284534780,-359.32281936,0.00023166,2]
[381560488,1756284534789,-120.67718064,0.00023166,2]
[381560489,1756284534855,-244.05429023,0.00023166,2]
[381560490,1756284534864,-480.0,0.00023166,2]
[381560491,1756284534874,-1154.13,0.00023166,2]
[381560492,1756284534884,-480.0,0.00023166,2]
[381560493,1756284534894,-409.00570977,0.00023166,2]
[381560494,1756284534952,-177.58883412,0.00023166,2]
[381560495,1756284536655,879.7228845,0.000199,2]
[381560496,1756284536680,2152.00889534,0.000199,2]
[381560497,1756284536760,3031.73177968,0.00021627,2]
[381560498,1756284566163,3872.27465793,0.00022905,2]
[381560499,1756284589370,4453.7546154,0.00022166,2]
[381560500,1756284603628,1673.98072667,0.00022163,2]
[381560501,1756284603651,406.62885243,0.00022163,2]
[381560503,1756284610284,188.4031321,0.00022163,2]
[381560845,1756284638175,-1200.0,0.00023158,2]
[381560846,1756284638185,-300.0,0.00023159,2]
[381560847,1756284638195,-300.0,0.00023159,2]
[381560848,1756284638204,-300.0,0.00023159,2]
[381560849,1756284638213,-300.0,0.00023159,2]
[381560850,1756284638222,-300.0,0.00023159,2]
[381560851,1756284638232,-300.0,0.00023159,2]
[381560852,1756284638241,-160.0,0.0002316,2]
[381560853,1756284638251,-480.0,0.00023164,2]
[381560854,1756284638260,-480.0,0.00023164,2]
[381560855,1756284638269,-480.0,0.00023164,2]
[381560856,1756284638279,-480.0,0.00023164,2]
[381560857,1756284638288,-480.0,0.00023164,2]
[381560858,1756284638298,-480.0,0.00023164,2]
[381560859,1756284638307,-480.0,0.00023164,2]
[381560860,1756284638317,-480.0,0.00023164,2]
[381560862,1756284638326,-500.0,0.00023165,2]
[381560864,1756284638335,-500.0,0.00023165,2]
[381560866,1756284638344,-500.0,0.00023165,2]
[381560868,1756284638355,-500.0,0.00023165,2]
[381560870,1756284638364,-500.0,0.00023165,2]
[381560872,1756284638373,-439.26354959,0.00023165,2]
[381560874,1756284638383,-500.0,0.00023165,2]
[381560876,1756284638392,-500.0,0.00023165,2]
[381560878,1756284638401,-500.0,0.00023165,2]
[381560880,1756284638410,-500.0,0.00023165,2]
[381560882,1756284638419,-500.0,0.00023165,2]
[381560883,1756284638428,-500.0,0.00023165,2]
[381560885,1756284638438,-500.0,0.00023165,2]
[381560886,1756284638447,-500.0,0.00023165,2]
[381560887,1756284638456,-500.0,0.00023165,2]
[381560888,1756284638465,-500.0,0.00023165,2]
[381560889,1756284638475,-500.0,0.00023165,2]
[381560890,1756284638486,-500.0,0.00023165,2]
[381560891,1756284638495,-594.17683534,0.00023165,2]
[381560892,1756284638504,-500.0,0.00023165,2]
[381560893,1756284638513,-500.0,0.00023165,2]
[381560894,1756284638523,-500.0,0.00023165,2]
[381560895,1756284638532,-500.0,0.00023165,2]
[381560896,1756284638541,-153.72719234,0.00023165,2]
[381560897,1756284638550,-500.0,0.00023165,2]
[381560898,1756284638559,-500.0,0.00023165,2]
[381560899,1756284638569,-500.0,0.00023165,2]
[381560900,1756284638578,-500.0,0.00023165,2]
[381560901,1756284638588,-500.0,0.00023165,2]
[381560902,1756284638597,-500.0,0.00023165,2]
[381560903,1756284638607,-604.00159707,0.00023165,2]
[381560904,1756284638616,-500.0,0.00023165,2]
[381560905,1756284638625,-500.0,0.00023165,2]
[381560906,1756284638635,-500.0,0.00023165,2]
[381560907,1756284638644,-500.0,0.00023165,2]
[381560908,1756284638653,-500.0,0.00023165,2]
[381560909,1756284638663,-500.0,0.00023165,2]
[381560911,1756284638673,-500.0,0.00023165,2]
[381560912,1756284638682,-480.0,0.00023165,2]
[381560913,1756284638691,-500.0,0.00023165,2]
[381560914,1756284638700,-500.0,0.00023165,2]
[381560916,1756284638709,-504.23338471,0.00023165,2]
[381560917,1756284638719,-500.0,0.00023165,2]
[381560918,1756284638728,-500.0,0.00023165,2]
[381560919,1756284638739,-500.0,0.00023165,2]
[381560920,1756284638748,-318.44299006,0.00023165,2]
[381560921,1756284638758,-500.0,0.00023165,2]
[381560922,1756284638767,-500.0,0.00023165,2]
[381560923,1756284638777,-500.0,0.00023165,2]
[381560924,1756284638786,-500.0,0.00023165,2]
[381560925,1756284638795,-500.0,0.00023165,2]
[381560926,1756284638804,-500.0,0.00023165,2]
[381560928,1756284638813,-500.0,0.00023165,2]
[381560930,1756284638822,-500.0,0.00023165,2]
[381560931,1756284638831,-500.0,0.00023165,2]
[381560933,1756284638841,-500.0,0.00023165,2]
[381560934,1756284638851,-500.0,0.00023165,2]
[381560935,1756284638860,-500.0,0.00023165,2]
[381560937,1756284638869,-500.0,0.00023165,2]
[381560962,1756284639099,-500.0,0.00023165,2]
[381560964,1756284639109,-500.0,0.00023165,2]
[381560966,1756284639118,-500.0,0.00023165,2]
[381560968,1756284639127,-500.0,0.00023165,2]
[381560970,1756284639136,-500.0,0.00023165,2]
[381560972,1756284639145,-279.08658129,0.00023165,2]
[381560974,1756284639154,-500.0,0.00023165,2]
[381560976,1756284639163,-500.0,0.00023165,2]
[381560978,1756284639175,-500.0,0.00023165,2]
[381560980,1756284639185,-500.0,0.00023165,2]
[381560982,1756284639195,-500.0,0.00023165,2]
[381560984,1756284639204,-480.0,0.00023165,2]
[381560986,1756284639214,-500.0,0.00023165,2]
[381560988,1756284639223,-500.0,0.00023165,2]
[381560990,1756284639235,-500.0,0.00023165,2]
[381560992,1756284639244,-500.0,0.00023165,2]
[381560994,1756284639254,-500.0,0.00023165,2]
[381560996,1756284639263,-500.0,0.00023165,2]
[381560998,1756284639272,-500.0,0.00023165,2]
[381561000,1756284639282,-500.0,0.00023165,2]
[381561002,1756284639291,-500.0,0.00023165,2]
[381561004,1756284639300,-500.0,0.00023165,2]
[381561006,1756284639309,-500.0,0.00023165,2]
[381561008,1756284639319,-500.0,0.00023165,2]
[381561010,1756284639328,-500.0,0.00023165,2]
[381561012,1756284639338,-500.0,0.00023165,2]
[381561014,1756284639347,-500.0,0.00023165,2]
[381561016,1756284639356,-500.0,0.00023165,2]
[381561018,1756284639365,-500.0,0.00023165,2]
[381561020,1756284639374,-500.0,0.00023165,2]
[381561022,1756284639383,-500.0,0.00023165,2]
[381561024,1756284639392,-537.33758032,0.00023165,2]
[381561026,1756284639401,-500.0,0.00023165,2]
[381561028,1756284639410,-500.0,0.00023165,2]
[381561030,1756284639420,-500.0,0.00023165,2]
[381561032,1756284639429,-500.0,0.00023165,2]
[381561034,1756284639438,-500.0,0.00023165,2]
[381561036,1756284639447,-500.0,0.00023165,2]
[381561037,1756284639456,-500.0,0.00023165,2]
[381561039,1756284639465,-500.0,0.00023165,2]
[381561041,1756284639474,-500.0,0.00023165,2]
[381561043,1756284639484,-500.0,0.00023165,2]
[381561044,1756284639493,-500.0,0.00023165,2]
[381561045,1756284639503,-340.04623191,0.00023165,2]
[381561046,1756284639512,-500.0,0.00023165,2]
[381561047,1756284639522,-500.0,0.00023165,2]
[381561048,1756284639531,-500.0,0.00023165,2]
[381561049,1756284639540,-500.0,0.00023165,2]
[381561050,1756284639552,-500.0,0.00023165,2]
[381561051,1756284639561,-500.0,0.00023165,2]
[381561052,1756284639571,-500.0,0.00023165,2]
[381561053,1756284639581,-500.0,0.00023165,2]
[381561054,1756284639591,-500.0,0.00023165,2]
[381561055,1756284639600,-500.0,0.00023165,2]
[381561056,1756284639609,-500.0,0.00023165,2]
[381561057,1756284639620,-445.625,0.00023165,2]
[381561058,1756284639630,-593.34919987,0.00023165,2]
[381561059,1756284639639,-500.0,0.00023165,2]
[381561060,1756284639648,-2127.62,0.00023165,2]
[381561061,1756284639658,-203.05671964,0.00023165,2]
[381561062,1756284639667,-500.0,0.00023165,2]
[381561063,1756284639676,-500.0,0.00023165,2]
[381561064,1756284639685,-500.0,0.00023165,2]
[381561066,1756284639694,-500.0,0.00023165,2]
[381561067,1756284639704,-500.0,0.00023165,2]
[381561068,1756284639712,-458.40339404,0.00023165,2]
[381561069,1756284639723,-500.0,0.00023165,2]
[381561070,1756284639732,-500.0,0.00023165,2]
[381561071,1756284639741,-500.0,0.00023165,2]
[381561072,1756284639750,-500.0,0.00023165,2]
[381561073,1756284639759,-500.0,0.00023165,2]
[381561074,1756284639770,-500.0,0.00023165,2]
[381561075,1756284639779,-500.0,0.00023165,2]
[381561076,1756284639788,-500.0,0.00023165,2]
[381561077,1756284639798,-500.0,0.00023165,2]
[381561078,1756284639807,-500.0,0.00023165,2]
[381561079,1756284639816,-450.0,0.00023165,2]
[381561080,1756284639825,-500.0,0.00023165,2]
[381561081,1756284639834,-500.0,0.00023165,2]
[381561082,1756284639844,-500.0,0.00023165,2]
[381561083,1756284639853,-500.0,0.00023165,2]
[381561084,1756284639862,-500.0,0.00023165,2]
[381561085,1756284639871,-500.0,0.00023165,2]
[381561086,1756284639880,-500.0,0.00023165,2]
[381561087,1756284639889,-500.0,0.00023165,2]
[381561088,1756284639898,-500.0,0.00023165,2]
[381561089,1756284639908,-442.26436006,0.00023165,2]
[381561090,1756284639917,-374.43764636,0.00023165,2]
[381561091,1756284639926,-500.0,0.00023165,2]
[381561093,1756284639936,-500.0,0.00023165,2]
[381561094,1756284639945,-500.0,0.00023165,2]
[381561095,1756284639954,-500.0,0.00023165,2]
[381561096,1756284639963,-500.0,0.00023165,2]
[381561097,1756284639973,-500.0,0.00023165,2]
[381561098,1756284639982,-500.0,0.00023165,2]
[381561099,1756284639992,-500.0,0.00023165,2]
[381561100,1756284640002,-372.86184344,0.00023165,2]
[381561101,1756284640011,-500.0,0.00023165,2]
[381561102,1756284640022,-500.0,0.00023165,2]
[381561103,1756284640031,-500.0,0.00023165,2]
[381561104,1756284640040,-458.40339404,0.00023165,2]
[381561105,1756284640049,-256.31238093,0.00023165,2]
[381561106,1756284640058,-500.0,0.00023165,2]
[381561107,1756284640067,-3109.7,0.00023165,2]
[381561108,1756284640077,-500.0,0.00023165,2]
[381561109,1756284640088,-500.0,0.00023165,2]
[381561110,1756284640099,-500.0,0.00023165,2]
[381561111,1756284640108,-500.0,0.00023165,2]
[381561112,1756284640117,-500.0,0.00023165,2]
[381561113,1756284640126,-500.0,0.00023165,2]
[381561114,1756284640135,-339.11845314,0.00023165,2]
[381561115,1756284640145,-500.0,0.00023165,2]
[381561116,1756284640154,-465.60675583,0.00023165,2]
[381561117,1756284640164,-500.0,0.00023165,2]
[381561118,1756284640173,-500.0,0.00023165,2]
[381561119,1756284640183,-484.4223591,0.00023165,2]
[381561120,1756284640192,-500.0,0.00023165,2]
[381561121,1756284640202,-500.0,0.00023165,2]
[381561122,1756284640211,-526.07884713,0.00023165,2]
[381561123,1756284640220,-500.0,0.00023165,2]
[381561124,1756284640230,-500.0,0.00023165,2]
[381561125,1756284640241,-526.07884713,0.00023165,2]
[381561126,1756284640250,-526.07884713,0.00023165,2]
[381561127,1756284640260,-500.0,0.00023165,2]
[381561128,1756284640269,-526.07884713,0.00023165,2]
[381561129,1756284640279,-526.07884713,0.00023165,2]
[381561130,1756284640288,-500.0,0.00023165,2]
[381561131,1756284640297,-300.0,0.00023165,2]
[381561132,1756284640306,-526.07884713,0.00023165,2]
[381561133,1756284640316,-323.34187565,0.00023165,2]
[381561134,1756284640325,-526.07884713,0.00023165,2]
[381561135,1756284640334,-526.07884713,0.00023165,2]
[381561136,1756284640343,-526.07884713,0.00023165,2]
[381561137,1756284640352,-526.07884713,0.00023165,2]
[381561138,1756284640362,-526.07884713,0.00023165,2]
[381561139,1756284640371,-526.07884713,0.00023165,2]
[381561140,1756284640380,-526.07884713,0.00023165,2]
[381561141,1756284640389,-526.07884713,0.00023165,2]
[381561142,1756284640398,-4787.12,0.00023165,2]
[381561143,1756284640407,-186.89879485,0.00023165,2]
[381561144,1756284640417,-500.0,0.00023165,2]
[381561145,1756284640425,-500.0,0.00023165,2]
[381561146,1756284640435,-500.0,0.00023165,2]
[381561147,1756284640444,-327.37215864,0.00023165,2]
[381561148,1756284640453,-540.03806255,0.00023165,2]
[381561149,1756284640462,-581.26072014,0.00023165,2]
[381561150,1756284640471,-500.0,0.00023165,2]
[381561151,1756284640480,-436.54187141,0.00023165,2]
[381561152,1756284640490,-230.60169052,0.00023165,2]
[381561153,1756284640499,-413.38128045,0.00023165,2]
[381561154,1756284640509,-200.0,0.00023165,10]
[381561155,1756284640517,-200.0,0.00023165,10]
[381561156,1756284640526,-209.904055,0.00023165,10]
[381561157,1756284640535,-568.95,0.00023165,2]
[381561159,1756284640544,-352.58545611,0.00023166,2]
[381561160,1756284640554,-809.41,0.00023166,2]
[381561161,1756284640562,-480.0,0.00023166,2]
[381561162,1756284640571,-480.0,0.00023166,2]
[381561163,1756284640580,-480.0,0.00023166,2]
[381561164,1756284640589,-480.0,0.00023166,2]
[381561165,1756284640599,-480.0,0.00023166,2]
[381561166,1756284640608,-6603.54,0.00023166,2]
[381561167,1756284640617,-658.49,0.00023166,2]
[381561168,1756284640626,-1174.15,0.00023166,2]
[381561169,1756284640635,-6244.01,0.00023166,2]
[381561170,1756284640644,-480.0,0.00023166,2]
[381561171,1756284640653,-715.18,0.00023166,2]